fUST/lending_fUST_20240518
["ID","MTS","AMOUNT","RATE_DAILY","PERIOD"]
[327334306,1715991041142,-500.0,0.00016712,4]
[327334308,1715991041151,-500.0,0.00016712,2]
[327334310,1715991041161,-500.0,0.00016712,2]
[327334313,1715991041171,-500.0,0.00016712,2]
[327334315,1715991041180,-500.0,0.00016712,2]
[327334317,1715991041189,-500.0,0.00016712,2]
[327334318,1715991041198,-500.0,0.00016712,2]
[327334321,1715991041208,-500.0,0.00016712,2]
[327334322,1715991041217,-500.0,0.00016712,2]
[327334324,1715991041227,-500.0,0.00016712,2]
[327334326,1715991041236,-500.0,0.00016712,2]
[327334328,1715991041245,-500.0,0.00016712,2]
[327334330,1715991041254,-500.0,0.00016712,2]
[327334332,1715991041264,-5896.69,0.00016712,2]
[327334334,1715991041273,-3556.23,0.00016712,2]
[327334336,1715991041283,-2475.48,0.00016712,2]
[327334338,1715991041292,-504.67,0.00016712,2]
[327334341,1715991041302,-500.0,0.00016712,2]
[327334343,1715991041312,-3297.17,0.00016712,2]
[327334345,1715991041321,-500.0,0.00016712,2]
[327334347,1715991041331,-500.0,0.00016712,2]
[327334348,1715991041340,-500.0,0.00016712,2]
[327334351,1715991041350,-500.0,0.00016712,2]
[327334353,1715991041359,-500.0,0.00016712,2]
[327334354,1715991041368,-500.0,0.00016712,2]
[327334357,1715991041377,-1238.78,0.00016712,2]
[327334359,1715991041387,-500.0,0.00016712,2]
[327334361,1715991041396,-620.55,0.00016712,2]
[327334363,1715991041406,-530.42,0.00016712,2]
[327334365,1715991041415,-806.46,0.00016712,2]
[327334367,1715991041424,-434.18,0.00016712,2]
[327334369,1715991041434,-500.0,0.00016712,2]
[327334371,1715991041444,-266.69855946,0.00016712,2]
[327334373,1715991041453,-563.27,0.00016712,2]
[327334375,1715991041463,-500.0,0.00016712,2]
[327334377,1715991041472,-500.0,0.00016712,2]
[327334379,1715991041481,-500.0,0.00016712,2]
[327334381,1715991041491,-600.94,0.00016712,2]
[327334383,1715991041500,-515.96,0.00016712,2]
[327334385,1715991041510,-1057.95,0.00016712,2]
[327334387,1715991041520,-5273.74,0.00016712,2]
[327334388,1715991041529,-500.0,0.00016712,2]
[327334391,1715991041538,-500.0,0.00016712,2]
[327334393,1715991041548,-500.0,0.00016712,2]
[327334394,1715991041557,-2565.95,0.00016712,2]
[327334396,1715991041566,-560.01,0.00016712,2]
[327334398,1715991041575,-607.06,0.00016712,2]
[327334400,1715991041585,-500.0,0.00016712,2]
[327334402,1715991041594,-500.0,0.00016712,2]
[327334404,1715991041603,-500.0,0.00016712,2]
[327334406,1715991041613,-500.0,0.00016712,2]
[327334408,1715991041622,-500.0,0.00016712,2]
[327334410,1715991041632,-23229.01,0.00016712,2]
[327334413,1715991041642,-559.93,0.00016712,2]
[327334415,1715991041651,-4322.13,0.00016712,2]
[327334416,1715991041661,-6347.83737132,0.000168,2]
[327334418,1715991041670,-576.83017182,0.00016816,2]
[327334420,1715991041679,-630.26465067,0.00016842,2]
[327334422,1715991041691,-320.79328507,0.00016984,2]
[327334424,1715991041702,-785.81,0.00016984,2]
[327334425,1715991041711,-785.81,0.00016985,2]
[327334426,1715991041720,-500.0,0.00016986,4]
[327334427,1715991041729,-500.0,0.00016986,2]
[327334428,1715991041740,-385.54945374,0.00016986,2]
[327334429,1715991041750,-500.0,0.00016986,2]
[327334430,1715991041759,-500.0,0.00016986,2]
[327334431,1715991041768,-500.0,0.00016986,2]
[327334432,1715991041780,-500.0,0.00016986,2]
[327334433,1715991041789,-500.0,0.00016986,2]
[327334434,1715991041798,-500.0,0.00016986,2]
[327334436,1715991041807,-5896.69,0.00016986,2]
[327334438,1715991041816,-3556.23,0.00016986,2]
[327334440,1715991041826,-2475.48,0.00016986,2]
[327334442,1715991041834,-500.0,0.00016986,2]
[327334444,1715991041844,-3297.17,0.00016986,2]
[327334446,1715991041853,-500.0,0.00016986,2]
[327334448,1715991041862,-500.0,0.00016986,2]
[327334450,1715991041871,-500.0,0.00016986,2]
[327334452,1715991041881,-500.0,0.00016986,2]
[327334454,1715991041889,-500.0,0.00016986,2]
[327334455,1715991041898,-1238.78,0.00016986,2]
[327334456,1715991041907,-530.42,0.00016986,2]
[327334457,1715991041916,-806.46,0.00016986,2]
[327334458,1715991041926,-485.65,0.00016986,2]
[327334459,1715991041935,-500.0,0.00016986,2]
[327334460,1715991041945,-600.94,0.00016986,2]
[327334461,1715991041954,-515.96,0.00016986,2]
[327334462,1715991041964,-1057.95,0.00016986,2]
[327334463,1715991041974,-5273.74,0.00016986,2]
[327334464,1715991041983,-151.0,0.00016986,2]
[327334465,1715991041993,-392.04,0.00016986,2]
[327334466,1715991042003,-151.0,0.00016986,2]
[327334467,1715991042012,-515.04942879,0.00016986,2]
[327334468,1715991042021,-500.0,0.00016986,2]
[327334469,1715991042031,-151.0,0.00016986,2]
[327334471,1715991042041,-2565.95,0.00016986,2]
[327334473,1715991042050,-555.5,0.00016986,2]
[327334475,1715991042059,-500.0,0.00016986,2]
[327334477,1715991042068,-500.0,0.00016986,2]
[327334479,1715991042077,-500.0,0.00016986,2]
[327334481,1715991042087,-500.0,0.00016986,2]
[327334483,1715991042096,-23229.01,0.00016986,2]
[327334485,1715991042105,-559.93,0.00016986,2]
[327334487,1715991042114,-151.0,0.00016986,2]
[327334489,1715991042123,-151.0,0.00016986,2]
[327334491,1715991042133,-4322.13,0.00016986,2]
[327334493,1715991042142,-517.113083,0.00016986,2]
[327334495,1715991042151,-150.0,0.00017054,2]
[327334497,1715991042160,-153.0,0.00017242,2]
[327334499,1715991042169,-785.81,0.00017259,2]
[327334501,1715991042179,-785.81,0.00017259,2]
[327334503,1715991042188,-785.81,0.00017259,2]
[327334505,1715991042199,-150.0,0.0001726,2]
[327334507,1715991042208,-495.0,0.0001726,2]
[327334509,1715991042217,-150.0,0.0001726,2]
[327334511,1715991042226,-500.0,0.0001726,4]
[327334514,1715991042236,-283.748331,0.0001726,2]
[327334515,1715991042245,-151.0,0.0001726,2]
[327334517,1715991042254,-151.0,0.0001726,2]
[327334519,1715991042264,-151.0,0.0001726,2]
[327334521,1715991042273,-151.0,0.0001726,2]
[327334523,1715991042283,-323.446998,0.0001726,2]
[327334525,1715991042292,-323.446998,0.0001726,2]
[327334527,1715991042301,-172.428668,0.0001726,2]
[327334529,1715991042311,-172.428668,0.0001726,2]
[327334531,1715991042320,-151.0,0.0001726,2]
[327334533,1715991042329,-151.0,0.0001726,2]
[327334535,1715991042338,-500.0,0.0001726,2]
[327334537,1715991042348,-928.00602,0.0001726,2]
[327334538,1715991042357,-928.00602,0.0001726,2]
[327334541,1715991042367,-500.0,0.0001726,2]
[327334542,1715991042376,-151.0,0.0001726,2]
[327334545,1715991042386,-151.0,0.0001726,2]
[327334547,1715991042395,-151.0,0.0001726,2]
[327334549,1715991042404,-850.729666,0.0001726,2]
[327334551,1715991042413,-850.729666,0.0001726,2]
[327334553,1715991042422,-0.11045489,0.0001726,2]
[327334701,1715991043849,-500.0,0.00016438,2]
[327334702,1715991043858,-150.0,0.00016587,3]
[327334703,1715991043868,-150.0,0.00016587,2]
[327334704,1715991043878,-517.113083,0.00016986,2]
[327334705,1715991043888,-150.88954511,0.0001726,2]
[327334707,1715991043897,-151.0,0.0001726,2]
[327334709,1715991043907,-154.507713,0.0001726,2]
[327334711,1715991043916,-154.507713,0.0001726,2]
[327334713,1715991043926,-500.0,0.0001726,2]
[327334715,1715991043934,-151.0,0.0001726,2]
[327334716,1715991043944,-151.0,0.0001726,2]
[327334718,1715991043956,-174.640218,0.0001726,2]
[327334720,1715991043966,-174.640218,0.0001726,2]
[327334722,1715991043975,-500.0,0.0001726,2]
[327334725,1715991043984,-1546.857652,0.0001726,2]
[327334728,1715991043993,-183.18597546,0.0001726,2]
[327334805,1715991046699,-1695.57952313,0.00014998,2]
[327334806,1715991046752,-332.90261076,0.00014998,2]
[327334807,1715991046761,-2107.25657902,0.00015,2]
[327334808,1715991046773,-500.0,0.00016438,2]
[327334809,1715991046783,-500.0,0.00016438,2]
[327334810,1715991046792,-500.0,0.00016438,2]
[327334811,1715991046801,-2166.04,0.00016438,2]
[327334812,1715991046810,-1363.67167654,0.0001726,2]
[327334813,1715991046819,-151.0,0.0001726,2]
[327334814,1715991046828,-151.0,0.0001726,2]
[327334815,1715991046837,-18.64893781,0.0001726,2]
[327334816,1715991048339,294.19147988,0.00014622,2]
[327334817,1715991068399,176.33,0.00010959,2]
[327334826,1715991380075,-500.0,0.00016438,4]
[327334827,1715991390964,-500.0,0.00016712,4]
[327334828,1715992031150,-250.0,0.00013465,2]
[327334829,1715992031176,-1084.37016178,0.00013999,2]
[327334830,1715992031198,-1361.67860413,0.00014098,2]
[327334831,1715992036153,-292.18459303,0.00014098,2]
[327334832,1715992040101,-744.5741133,0.00014098,2]
[327334833,1715992156139,-204.68380225,0.00013699,2]
[327334834,1715992156167,-522.33947375,0.00013699,2]
[327334835,1715992156192,-1084.37016178,0.000138,2]
[327334836,1715992156212,-3390.5117,0.00014,2]
[327334837,1715992156231,-155.67454446,0.00014097,2]
[327334838,1715992156252,-302.9044461,0.00014098,2]
[327334839,1715992156272,-24900.0,0.00014099,2]
[327334840,1715992156292,-164.0543791,0.00014225,2]
[327334841,1715992156312,-164.0543791,0.00014678,2]
[327334882,1715992232873,-373.5600185,0.000149,2]
[327334884,1715992232883,-1097.08268495,0.000149,2]
[327334885,1715992232892,-3390.5117,0.00014998,2]
[327334887,1715992232902,-1084.37016178,0.00014999,2]
[327334889,1715992232911,-1148.90229176,0.00015,2]
[327334891,1715992232920,-80000.0,0.00015,2]
[327334893,1715992232929,-2107.25657902,0.00015,2]
[327334895,1715992232938,-942.40757179,0.00015,2]
[327334897,1715992232947,-2400.26192892,0.00015,2]
[327334899,1715992232956,-581.39751116,0.00015127,2]
[327334901,1715992232965,-164.0543791,0.0001513,2]
[327334904,1715992232974,-3062.04975284,0.00015227,2]
[327334907,1715992232983,-425.48857528,0.00015227,2]
[327334909,1715992232992,-377.47621869,0.00015227,2]
[327334910,1715992233001,-1045.99605734,0.00015227,2]
[327334912,1715992233010,-17220.15164376,0.00015228,2]
[327335011,1715992238053,-3254.31609697,0.00015228,2]
[327335013,1715992238063,-6856.97708988,0.00015229,2]
[327335015,1715992238072,-373.56001848,0.00015275,2]
[327335017,1715992238082,-530.0359968,0.00015613,2]
[327335019,1715992238091,-373.56001848,0.0001565,2]
[327335021,1715992238103,-7966.29275223,0.00016,2]
[327335023,1715992238113,-5019.36336665,0.00016,2]
[327335025,1715992238123,-373.56001848,0.00016025,2]
[327335027,1715992238133,-4296.94494415,0.00016338,2]
[327335029,1715992238143,-2000.0,0.00016338,2]
[327335031,1715992238152,-87748.00291445,0.00016338,2]
[327335033,1715992238161,-373.56001848,0.000164,2]
[327335035,1715992238171,-156.2364718,0.00016435,2]
[327335037,1715992238180,-260.64786681,0.00016435,2]
[327335039,1715992238189,-320.79328507,0.00016436,2]
[327335041,1715992238198,-10482.46743188,0.00016438,3]
[327335043,1715992238207,-500.0,0.00016438,2]
[327335045,1715992238217,-501.06667719,0.00016438,2]
[327335047,1715992238226,-500.0,0.00016438,2]
[327335049,1715992238236,-500.0,0.00016438,2]
[327335051,1715992238245,-500.0,0.00016438,2]
[327335053,1715992238254,-500.0,0.00016438,2]
[327335055,1715992238264,-500.0,0.00016438,2]
[327335057,1715992238273,-501.02332322,0.00016438,2]
[327335059,1715992238283,-500.0,0.00016438,2]
[327335061,1715992238292,-500.0,0.00016438,2]
[327335063,1715992238301,-500.0,0.00016438,2]
[327335065,1715992238312,-496.91563878,0.00016438,2]
[327335067,1715992238322,-500.0,0.00016438,2]
[327335069,1715992238331,-500.79962334,0.00016438,2]
[327335071,1715992238341,-496.33271539,0.00016438,2]
[327335073,1715992238350,-500.90492189,0.00016438,2]
[327335075,1715992238360,-500.0,0.00016438,2]
[327335077,1715992238370,-500.0,0.00016438,2]
[327335079,1715992238379,-268.35997529,0.00016438,2]
[327335081,1715992238389,-549.2543388,0.00016438,2]
[327335083,1715992238398,-500.0,0.00016438,2]
[327335085,1715992238407,-500.0,0.00016438,2]
[327335087,1715992238417,-500.0,0.00016438,2]
[327335089,1715992238426,-500.69953264,0.00016438,2]
[327335091,1715992238435,-500.0,0.00016438,2]
[327335093,1715992238444,-500.0,0.00016438,2]
[327335095,1715992238454,-500.0,0.00016438,2]
[327335097,1715992238464,-500.0,0.00016438,2]
[327335099,1715992238473,-500.0,0.00016438,2]
[327335101,1715992238482,-500.0,0.00016438,2]
[327335103,1715992238491,-500.0,0.00016438,2]
[327335105,1715992238500,-500.0,0.00016438,2]
[327335107,1715992238509,-500.0,0.00016438,2]
[327335109,1715992238518,-501.78493775,0.00016438,2]
[327335111,1715992238527,-500.0,0.00016438,2]
[327335113,1715992238536,-500.0,0.00016438,2]
[327335115,1715992238545,-500.0,0.00016438,2]
[327335117,1715992238555,-500.0,0.00016438,2]
[327335119,1715992238564,-500.0,0.00016438,2]
[327335121,1715992238574,-500.0,0.00016438,2]
[327335123,1715992238583,-500.0,0.00016438,2]
[327335125,1715992238592,-500.0,0.00016438,2]
[327335127,1715992238601,-500.0,0.00016438,2]
[327335129,1715992238610,-500.0,0.00016438,2]
[327335131,1715992238619,-500.0,0.00016438,2]
[327335133,1715992238628,-502.35738942,0.00016438,2]
[327335135,1715992238637,-500.0,0.00016438,2]
[327335137,1715992238646,-500.0,0.00016438,2]
[327335139,1715992238656,-500.0,0.00016438,2]
[327335140,1715992238665,-500.0,0.00016438,2]
[327335142,1715992238674,-500.0,0.00016438,2]
[327335144,1715992238682,-500.0,0.00016438,2]
[327335146,1715992238691,-500.0,0.00016438,2]
[327335147,1715992238700,-500.0,0.00016438,2]
[327335149,1715992238710,-518.52660179,0.00016438,2]
[327335151,1715992238719,-500.0,0.00016438,2]
[327335153,1715992238728,-543.09779564,0.00016438,2]
[327335155,1715992238737,-500.0,0.00016438,2]
[327335157,1715992238746,-500.0,0.00016438,2]
[327335159,1715992238754,-206.75056341,0.00016438,2]
[327335161,1715992238763,-500.0,0.00016438,2]
[327335162,1715992238772,-158.21638616,0.00016438,2]
[327335164,1715992238782,-500.0,0.00016438,2]
[327335166,1715992238791,-500.0,0.00016438,2]
[327335168,1715992238799,-500.0,0.00016438,2]
[327335170,1715992238810,-500.0,0.00016438,2]
[327335172,1715992238819,-500.0,0.00016438,2]
[327335174,1715992238827,-500.89923349,0.00016438,2]
[327335176,1715992238837,-500.0,0.00016438,2]
[327335177,1715992238846,-159.66382287,0.00016438,2]
[327335179,1715992238855,-501.73717795,0.00016438,2]
[327335181,1715992238864,-500.0,0.00016438,2]
[327335183,1715992238872,-500.0,0.00016438,2]
[327335185,1715992238881,-502.33216634,0.00016438,2]
[327335187,1715992238890,-505.89911409,0.00016438,2]
[327335189,1715992238900,-500.0,0.00016438,2]
[327335190,1715992238909,-500.0,0.00016438,2]
[327335192,1715992238918,-500.0,0.00016438,2]
[327335194,1715992238927,-500.0,0.00016438,2]
[327335196,1715992238936,-500.0,0.00016438,2]
[327335198,1715992238945,-187.91517803,0.00016438,2]
[327335199,1715992238954,-500.2004031,0.00016438,2]
[327335201,1715992238963,-170.98823797,0.00016438,2]
[327335203,1715992238972,-500.0,0.00016438,2]
[327335205,1715992238981,-500.0,0.00016438,2]
[327335207,1715992238990,-500.0,0.00016438,2]
[327335209,1715992239000,-503.51167733,0.00016438,2]
[327335211,1715992239010,-500.0,0.00016438,2]
[327335213,1715992239020,-500.0,0.00016438,2]
[327335215,1715992239029,-504.49246044,0.00016438,2]
[327335216,1715992239038,-501.56644249,0.00016438,2]
[327335218,1715992239047,-500.0,0.00016438,2]
[327335220,1715992239057,-500.0,0.00016438,2]
[327335222,1715992239067,-500.0,0.00016438,2]
[327335224,1715992239076,-500.0,0.00016438,2]
[327335226,1715992239085,-500.0,0.00016438,2]
[327335228,1715992239094,-500.0,0.00016438,2]
[327335229,1715992239110,-500.0,0.00016438,2]
[327335231,1715992239119,-500.0,0.00016438,2]
[327335233,1715992239129,-500.0,0.00016438,2]
[327335235,1715992239139,-500.0,0.00016438,2]
[327335237,1715992239150,-500.0,0.00016438,2]
[327335239,1715992239160,-500.0,0.00016438,2]
[327335241,1715992239170,-500.0,0.00016438,2]
[327335243,1715992239181,-500.0,0.00016438,2]
[327335245,1715992239190,-500.0,0.00016438,2]
[327335247,1715992239200,-500.0,0.00016438,2]
[327335249,1715992239209,-500.0,0.00016438,2]
[327335250,1715992239218,-500.0,0.00016438,2]
[327335252,1715992239227,-500.0,0.00016438,2]
[327335254,1715992239237,-500.0,0.00016438,2]
[327335256,1715992239246,-500.0,0.00016438,2]
[327335258,1715992239256,-500.0,0.00016438,2]
[327335260,1715992239266,-376.95872008,0.00016438,2]
[327335262,1715992239275,-500.0,0.00016438,2]
[327335263,1715992239286,-500.0,0.00016438,2]
[327335265,1715992239295,-503.17578765,0.00016438,2]
[327335267,1715992239307,-502.1537635,0.00016438,2]
[327335269,1715992239316,-500.0,0.00016438,2]
[327335271,1715992239326,-500.0,0.00016438,2]
[327335273,1715992239336,-500.0,0.00016438,2]
[327335275,1715992239346,-500.0,0.00016438,2]
[327335277,1715992239355,-649.95,0.00016438,2]
[327335278,1715992239365,-500.0,0.00016438,2]
[327335280,1715992239375,-500.0,0.00016438,2]
[327335282,1715992239384,-500.0,0.00016438,2]
[327335284,1715992239394,-500.0,0.00016438,2]
[327335286,1715992239403,-500.0,0.00016438,2]
[327335287,1715992239413,-500.0,0.00016438,2]
[327335289,1715992239423,-500.0,0.00016438,2]
[327335291,1715992239433,-500.0,0.00016438,2]
[327335293,1715992239444,-500.0,0.00016438,2]
[327335295,1715992239454,-500.0,0.00016438,2]
[327335297,1715992239464,-500.0,0.00016438,2]
[327335299,1715992239474,-500.0,0.00016438,2]
[327335301,1715992239484,-500.0,0.00016438,2]
[327335303,1715992239494,-500.0,0.00016438,2]
[327335305,1715992239504,-500.0,0.00016438,2]
[327335307,1715992239514,-500.0,0.00016438,2]
[327335308,1715992239524,-500.0,0.00016438,2]
[327335310,1715992239535,-500.0,0.00016438,2]
[327335312,1715992239545,-500.0,0.00016438,2]
[327335314,1715992239555,-522.94149242,0.00016438,2]
[327335316,1715992239566,-500.0,0.00016438,2]
[327335318,1715992239576,-500.0,0.00016438,2]
[327335320,1715992239585,-500.0,0.00016438,2]
[327335321,1715992239595,-500.0,0.00016438,2]
[327335323,1715992239605,-515.39551987,0.00016438,2]
[327335326,1715992239616,-500.0,0.00016438,2]
[327335328,1715992239626,-500.0,0.00016438,2]
[327335330,1715992239636,-500.0,0.00016438,2]
[327335332,1715992239646,-514.1380679,0.00016438,2]
[327335334,1715992239657,-564.9621803,0.00016438,2]
[327335336,1715992239667,-500.0,0.00016438,2]
[327335338,1715992239676,-511.10521844,0.00016438,2]
[327335341,1715992239686,-500.0,0.00016438,2]
[327335343,1715992239696,-500.0,0.00016438,2]
[327335344,1715992239705,-500.0,0.00016438,2]
[327335346,1715992239715,-500.0,0.00016438,2]
[327335348,1715992239725,-504.29461321,0.00016438,2]
[327335350,1715992239735,-500.0,0.00016438,2]
[327335352,1715992239745,-500.0,0.00016438,2]
[327335354,1715992239755,-500.0,0.00016438,2]
[327335356,1715992239765,-500.0,0.00016438,2]
[327335359,1715992239775,-500.0,0.00016438,2]
[327335362,1715992239785,-500.0,0.00016438,2]
[327335365,1715992239795,-257.5670223,0.00016438,2]
[327335368,1715992239804,-509.11158163,0.00016438,2]
[327335370,1715992239816,-500.0,0.00016438,2]
[327335372,1715992239826,-500.0,0.00016438,2]
[327335374,1715992239836,-502.51126909,0.00016438,2]
[327335377,1715992239846,-500.0,0.00016438,2]
[327335378,1715992239855,-785.81,0.00016438,2]
[327335380,1715992239865,-785.81,0.00016438,2]
[327335382,1715992239875,-785.81,0.00016438,2]
[327335384,1715992239884,-785.81,0.00016438,2]
[327335386,1715992239895,-785.81,0.00016438,2]
[327335388,1715992239904,-500.0,0.00016438,2]
[327335390,1715992239913,-785.81,0.00016438,2]
[327335392,1715992239923,-785.81,0.00016438,2]
[327335394,1715992239935,-785.81,0.00016438,2]
[327335396,1715992239946,-785.81,0.00016438,2]
[327335398,1715992239957,-504.6275065,0.00016438,2]
[327335400,1715992239966,-500.0,0.00016438,2]
[327335402,1715992239976,-500.0,0.00016438,2]
[327335404,1715992239985,-500.0,0.00016438,2]
[327335405,1715992239994,-500.0,0.00016438,2]
[327335407,1715992240003,-500.0,0.00016438,2]
[327335409,1715992240013,-500.0,0.00016438,2]
[327335411,1715992240023,-559.93,0.00016438,2]
[327335413,1715992240033,-25457.4,0.00016438,2]
[327335415,1715992240042,-500.0,0.00016438,2]
[327335417,1715992240052,-4322.13,0.00016438,2]
[327335419,1715992240062,-3556.23,0.00016438,2]
[327335421,1715992240071,-500.0,0.00016438,4]
[327335423,1715992240081,-2385.23,0.00016438,2]
[327335425,1715992240090,-500.47313397,0.00016438,2]
[327335426,1715992240100,-500.0,0.00016438,2]
[327335428,1715992240115,-500.0,0.00016438,2]
[327335430,1715992240124,-500.0,0.00016438,2]
[327335432,1715992240134,-500.0,0.00016438,2]
[327335434,1715992240144,-500.0,0.00016438,2]
[327335436,1715992240154,-500.0,0.00016438,2]
[327335438,1715992240164,-500.0,0.00016438,2]
[327335440,1715992240174,-500.0,0.00016438,2]
[327335442,1715992240183,-500.0,0.00016438,2]
[327335444,1715992240193,-500.0,0.00016438,2]
[327335446,1715992240202,-500.0,0.00016438,2]
[327335448,1715992240212,-500.0,0.00016438,2]
[327335449,1715992240221,-500.0,0.00016438,2]
[327335451,1715992240231,-3297.17,0.00016438,2]
[327335453,1715992240240,-500.0,0.00016438,2]
[327335455,1715992240250,-500.0,0.00016438,2]
[327335457,1715992240260,-500.0,0.00016438,2]
[327335459,1715992240269,-500.0,0.00016438,2]
[327335461,1715992240279,-500.0,0.00016438,2]
[327335463,1715992240289,-5896.69,0.00016438,2]
[327335465,1715992240299,-500.0,0.00016438,2]
[327335467,1715992240310,-500.0,0.00016438,2]
[327335469,1715992240320,-500.0,0.00016438,2]
[327335471,1715992240330,-500.0,0.00016438,2]
[327335472,1715992240341,-500.0,0.00016438,2]
[327335474,1715992240351,-500.0,0.00016438,2]
[327335476,1715992240361,-500.0,0.00016438,2]
[327335478,1715992240371,-1238.78,0.00016438,2]
[327335480,1715992240381,-500.0,0.00016438,2]
[327335482,1715992240391,-500.0,0.00016438,2]
[327335484,1715992240401,-584.77878106,0.00016438,2]
[327335486,1715992240412,-500.0,0.00016438,2]
[327335488,1715992240421,-500.0,0.00016438,2]
[327335489,1715992240432,-530.42,0.00016438,2]
[327335491,1715992240442,-500.47322055,0.00016438,2]
[327335493,1715992240451,-500.0,0.00016438,2]
[327335495,1715992240461,-500.0,0.00016438,2]
[327335497,1715992240471,-500.0,0.00016438,2]
[327335499,1715992240481,-500.0,0.00016438,2]
[327335501,1715992240491,-806.46,0.00016438,2]
[327335503,1715992240501,-506.42610505,0.00016438,2]
[327335505,1715992240511,-500.0,0.00016438,2]
[327335507,1715992240521,-642.63361152,0.00016438,2]
[327335508,1715992240531,-500.0,0.00016438,2]
[327335509,1715992240540,-503.02130566,0.00016438,2]
[327335510,1715992240550,-500.0,0.00016438,2]
[327335511,1715992240561,-500.0,0.00016438,2]
[327335512,1715992240571,-500.0,0.00016438,2]
[327335513,1715992240581,-383.51822389,0.00016438,2]
[327335514,1715992240592,-500.0,0.00016438,2]
[327335515,1715992240602,-500.0,0.00016438,2]
[327335516,1715992240612,-500.0,0.00016438,2]
[327335517,1715992240622,-500.0,0.00016438,2]
[327335518,1715992240631,-500.0,0.00016438,2]
[327335519,1715992240641,-651.74,0.00016438,2]
[327335520,1715992240650,-500.0,0.00016438,2]
[327335521,1715992240660,-500.0,0.00016438,2]
[327335522,1715992240669,-500.0,0.00016438,2]
[327335523,1715992240679,-500.0,0.00016438,2]
[327335524,1715992240688,-600.94,0.00016438,2]
[327335525,1715992240698,-500.0,0.00016438,2]
[327335526,1715992240707,-5273.74,0.00016438,2]
[327335527,1715992240716,-375.08,0.00016438,2]
[327335529,1715992240726,-1057.95,0.00016438,2]
[327335530,1715992240735,-500.0,0.00016438,2]
[327335532,1715992240744,-500.0,0.00016438,2]
[327335534,1715992240754,-500.0,0.00016438,2]
[327335536,1715992240763,-500.0,0.00016438,2]
[327335538,1715992240773,-500.0,0.00016438,2]
[327335540,1715992240783,-500.0,0.00016438,2]
[327335542,1715992240791,-500.0,0.00016438,2]
[327335544,1715992240802,-500.0,0.00016438,2]
[327335546,1715992240812,-500.0,0.00016438,2]
[327335548,1715992240821,-500.0,0.00016438,2]
[327335550,1715992240830,-500.0,0.00016438,2]
[327335552,1715992240840,-531.82153831,0.00016438,2]
[327335554,1715992240849,-2565.95,0.00016438,2]
[327335557,1715992240858,-500.0,0.00016438,2]
[327335558,1715992240867,-500.0,0.00016438,2]
[327335560,1715992240877,-500.0,0.00016438,2]
[327335562,1715992240886,-500.0,0.00016438,2]
[327335565,1715992240896,-500.0,0.00016438,2]
[327335566,1715992240905,-447.75220669,0.00016438,2]
[327335568,1715992240914,-12703.0,0.000165,2]
[327335571,1715992240923,-274.09997115,0.000165,2]
[327335572,1715992240933,-417.0761086,0.000165,2]
[327335574,1715992240942,-590.6,0.00016576,3]
[327335576,1715992240952,-590.6,0.00016576,2]
[327335578,1715992240962,-6347.83737232,0.000167,2]